[Event "Titled Tuesday Blitz August 08 Early 2023"]
[White "Rios Escobar, Adan"]
[Black "Tarnowska, Aleksandra"]
[WhiteFideId "3403645"]
[BlackFideId "1180967"]
[WhiteElo "2450"]
[BlackElo "2161"]
[Result "1-0"]
[Round "2"]
[TimeControl "180+1"]
[Date "2023.08.08"]
[WhiteClock "0:01:07"]
[BlackClock "0:00:06"]
[Board "252"]

1. d4 {[%clk 0:02:53]}  d5 {[%clk 0:02:58]} 2. c4 {[%clk 0:02:51]}  e6 {[%clk 0:02:58]} 3. Nf3 {[%clk 0:02:50]}  Nf6 {[%clk 0:02:58]} 4. g3 {[%clk 0:02:49]}  Be7 {[%clk 0:02:55]} 5. Bg2 {[%clk 0:02:48]}  O-O {[%clk 0:02:56]} 6. O-O {[%clk 0:02:48]}  b6 {[%clk 0:02:55]} 7. cxd5 {[%clk 0:02:47]}  exd5 {[%clk 0:02:54]} 8. Nc3 {[%clk 0:02:48]}  Nbd7 {[%clk 0:02:52]} 9. Bf4 {[%clk 0:02:48]}  Bb7 {[%clk 0:02:52]} 10. Rc1 {[%clk 0:02:44]}  c6 {[%clk 0:02:13]} 11. Qb3 {[%clk 0:02:36]}  Ne4 {[%clk 0:02:09]} 12. Rfd1 {[%clk 0:02:24]}  Ndf6 {[%clk 0:01:32]} 13. Ne5 {[%clk 0:02:20]}  Rc8 {[%clk 0:00:53]} 14. a4 {[%clk 0:01:54]}  Bd6 {[%clk 0:00:45]} 15. a5 {[%clk 0:01:51]}  Re8 {[%clk 0:00:39]} 16. Nxe4 {[%clk 0:01:50]}  Nxe4 {[%clk 0:00:39]} 17. Bxe4 {[%clk 0:01:50]}  dxe4 {[%clk 0:00:40]} 18. Qxf7+ {[%clk 0:01:49]}  Kh8 {[%clk 0:00:37]} 19. Qxb7 {[%clk 0:01:46]}  Re7 {[%clk 0:00:26]} 20. Nf7+ {[%clk 0:01:40]}  Rxf7 {[%clk 0:00:24]} 21. Qxf7 {[%clk 0:01:40]}  bxa5 {[%clk 0:00:20]} 22. Be5 {[%clk 0:01:30]}  Bf8 {[%clk 0:00:17]} 23. Qxa7 {[%clk 0:01:25]}  Qg5 {[%clk 0:00:14]} 24. Qxa5 {[%clk 0:01:19]}  e3 {[%clk 0:00:15]} 25. f4 {[%clk 0:01:13]}  Qg6 {[%clk 0:00:08]} 26. Qa6 {[%clk 0:01:08]}  h5 {[%clk 0:00:06]} 27. Qxc8 {[%clk 0:01:07]} 1-0


[Site "https://www.chess.com"]

[Event "Titled Tuesday Blitz August 08 Early 2023"]
[White "Aung Thant Zin"]
[Black "TrompeterImEther"]
[WhiteFideId "13000063"]
[WhiteElo "2159"]
[BlackElo "2449"]
[Result "0-1"]
[Round "2"]
[TimeControl "180+1"]
[Date "2023.08.08"]
[WhiteClock "0:00:27"]
[BlackClock "0:00:03"]
[Board "253"]

1. e4 {[%clk 0:02:57]}  e5 {[%clk 0:02:59]} 2. Nf3 {[%clk 0:02:57]}  Nc6 {[%clk 0:02:59]} 3. d4 {[%clk 0:02:57]}  exd4 {[%clk 0:02:58]} 4. Nxd4 {[%clk 0:02:57]}  Nf6 {[%clk 0:02:58]} 5. Nc3 {[%clk 0:02:58]}  Bb4 {[%clk 0:02:57]} 6. Nxc6 {[%clk 0:02:57]}  bxc6 {[%clk 0:02:56]} 7. Bd3 {[%clk 0:02:57]}  d5 {[%clk 0:02:55]} 8. exd5 {[%clk 0:02:56]}  cxd5 {[%clk 0:02:54]} 9. O-O {[%clk 0:02:55]}  O-O {[%clk 0:02:54]} 10. Bg5 {[%clk 0:02:53]}  c6 {[%clk 0:02:53]} 11. h3 {[%clk 0:02:51]}  h6 {[%clk 0:02:52]} 12. Bh4 {[%clk 0:02:47]}  Bd6 {[%clk 0:02:47]} 13. Ne2 {[%clk 0:02:40]}  Rb8 {[%clk 0:02:46]} 14. b3 {[%clk 0:02:40]}  Be5 {[%clk 0:02:36]} 15. Rb1 {[%clk 0:02:38]}  Qb6 {[%clk 0:02:35]} 16. Bg3 {[%clk 0:02:36]}  Bxg3 {[%clk 0:02:32]} 17. Nxg3 {[%clk 0:02:36]}  c5 {[%clk 0:02:29]} 18. Nh5 {[%clk 0:02:29]}  Bb7 {[%clk 0:02:05]} 19. Nxf6+ {[%clk 0:02:07]}  Qxf6 {[%clk 0:02:06]} 20. Qg4 {[%clk 0:02:07]}  Bc6 {[%clk 0:01:53]} 21. Rbe1 {[%clk 0:02:02]}  Rfe8 {[%clk 0:01:51]} 22. Qg3 {[%clk 0:01:56]}  Rxe1 {[%clk 0:00:52]} 23. Qxb8+ {[%clk 0:01:50]}  Re8 {[%clk 0:00:51]} 24. Qg3 {[%clk 0:01:27]}  g6 {[%clk 0:00:45]} 25. a4 {[%clk 0:01:21]}  Kg7 {[%clk 0:00:43]} 26. Bb5 {[%clk 0:01:12]}  Bxb5 {[%clk 0:00:40]} 27. axb5 {[%clk 0:01:13]}  Qb6 {[%clk 0:00:29]} 28. Ra1 {[%clk 0:01:07]}  Re7 {[%clk 0:00:20]} 29. Qc3+ {[%clk 0:01:05]}  d4 {[%clk 0:00:20]} 30. Qa5 {[%clk 0:01:03]}  Qf6 {[%clk 0:00:17]} 31. Re1 {[%clk 0:00:54]}  Rxe1+ {[%clk 0:00:11]} 32. Qxe1 {[%clk 0:00:53]}  Qb6 {[%clk 0:00:11]} 33. Qe2 {[%clk 0:00:51]}  h5 {[%clk 0:00:11]} 34. Qc4 {[%clk 0:00:50]}  Qd6 {[%clk 0:00:10]} 35. Qe2 {[%clk 0:00:47]}  f6 {[%clk 0:00:08]} 36. g3 {[%clk 0:00:44]}  Kh6 {[%clk 0:00:07]} 37. Qd2+ {[%clk 0:00:43]}  g5 {[%clk 0:00:07]} 38. Qd3 {[%clk 0:00:42]}  Qe5 {[%clk 0:00:07]} 39. Qf3 {[%clk 0:00:42]}  Qe1+ {[%clk 0:00:04]} 40. Kg2 {[%clk 0:00:42]}  Qe7 {[%clk 0:00:05]} 41. Qf5 {[%clk 0:00:41]}  Kg7 {[%clk 0:00:04]} 42. Qd5 {[%clk 0:00:40]}  Kg6 {[%clk 0:00:04]} 43. Kf3 {[%clk 0:00:38]}  f5 {[%clk 0:00:03]} 44. Qc6+ {[%clk 0:00:37]}  Kg7 {[%clk 0:00:03]} 45. Kg2 {[%clk 0:00:37]}  g4 {[%clk 0:00:03]} 46. h4 {[%clk 0:00:37]}  Qe4+ {[%clk 0:00:03]} 47. Kg1 {[%clk 0:00:33]}  Qxc2 {[%clk 0:00:03]} 48. Qd7+ {[%clk 0:00:32]}  Kf6 {[%clk 0:00:03]} 49. Qd6+ {[%clk 0:00:31]}  Kf7 {[%clk 0:00:03]} 50. Qd7+ {[%clk 0:00:31]}  Kf6 {[%clk 0:00:03]} 51. Qd8+ {[%clk 0:00:31]}  Ke5 {[%clk 0:00:03]} 52. Qe7+ {[%clk 0:00:31]}  Kd5 {[%clk 0:00:03]} 53. Qf7+ {[%clk 0:00:30]}  Ke4 {[%clk 0:00:04]} 54. Qe6+ {[%clk 0:00:30]}  Kf3 {[%clk 0:00:03]} 55. Qxf5+ {[%clk 0:00:30]}  Qxf5 {[%clk 0:00:03]} 56. Kh2 {[%clk 0:00:29]}  Kxf2 {[%clk 0:00:03]} 57. Kh1 {[%clk 0:00:27]}  Qf3+ {[%clk 0:00:02]} 58. Kh2 {[%clk 0:00:27]}  Qg2# {[%clk 0:00:03]} 0-1


[Site "https://www.chess.com"]

[Event "Titled Tuesday Blitz August 08 Early 2023"]
[White "Pumpkin_in_moonlight"]
[Black "Korkmaz, Necmettin"]
[BlackFideId "6303285"]
[WhiteElo "2154"]
[BlackElo "2449"]
[Result "0-1"]
[Round "2"]
[TimeControl "180+1"]
[Date "2023.08.08"]
[WhiteClock "0:00:00"]
[BlackClock "0:00:52"]
[Board "254"]

1. e4 {[%clk 0:03:00]}  e5 {[%clk 0:02:59]} 2. Nf3 {[%clk 0:03:00]}  Nc6 {[%clk 0:02:58]} 3. Bb5 {[%clk 0:02:59]}  a6 {[%clk 0:02:57]} 4. Ba4 {[%clk 0:02:57]}  Nf6 {[%clk 0:02:57]} 5. O-O {[%clk 0:02:55]}  Nxe4 {[%clk 0:02:55]} 6. d4 {[%clk 0:02:52]}  b5 {[%clk 0:02:54]} 7. Bb3 {[%clk 0:02:51]}  d5 {[%clk 0:02:54]} 8. dxe5 {[%clk 0:02:49]}  Be6 {[%clk 0:02:54]} 9. c3 {[%clk 0:02:49]}  Bc5 {[%clk 0:02:50]} 10. Nbd2 {[%clk 0:02:44]}  O-O {[%clk 0:02:49]} 11. Bc2 {[%clk 0:02:39]}  f5 {[%clk 0:02:39]} 12. Nb3 {[%clk 0:02:08]}  Bb6 {[%clk 0:02:31]} 13. Nfd4 {[%clk 0:02:04]}  Nxd4 {[%clk 0:02:27]} 14. Nxd4 {[%clk 0:01:56]}  Qd7 {[%clk 0:02:23]} 15. f3 {[%clk 0:01:27]}  Nc5 {[%clk 0:02:22]} 16. Kh1 {[%clk 0:01:22]}  Rae8 {[%clk 0:02:08]} 17. Bf4 {[%clk 0:01:15]}  Nb7 {[%clk 0:02:02]} 18. b4 {[%clk 0:01:08]}  Nd8 {[%clk 0:01:54]} 19. a4 {[%clk 0:01:05]}  h6 {[%clk 0:01:45]} 20. axb5 {[%clk 0:01:04]}  axb5 {[%clk 0:01:45]} 21. Bd3 {[%clk 0:00:51]}  c6 {[%clk 0:01:39]} 22. Ra6 {[%clk 0:00:31]}  Qb7 {[%clk 0:01:38]} 23. Qa1 {[%clk 0:00:27]}  g5 {[%clk 0:01:32]} 24. Bd2 {[%clk 0:00:24]}  Rf7 {[%clk 0:01:32]} 25. Ra8 {[%clk 0:00:17]}  Bc8 {[%clk 0:01:22]} 26. Ra3 {[%clk 0:00:13]}  Kg7 {[%clk 0:01:19]} 27. Re1 {[%clk 0:00:13]}  Be6 {[%clk 0:01:12]} 28. Qb1 {[%clk 0:00:13]}  Ref8 {[%clk 0:01:11]} 29. Ra1 {[%clk 0:00:10]}  Bxd4 {[%clk 0:01:09]} 30. cxd4 {[%clk 0:00:10]}  Bc8 {[%clk 0:01:09]} 31. Bc3 {[%clk 0:00:10]}  Ne6 {[%clk 0:01:09]} 32. Bc2 {[%clk 0:00:08]}  Qb6 {[%clk 0:01:09]} 33. Qb2 {[%clk 0:00:07]}  Nf4 {[%clk 0:01:09]} 34. g3 {[%clk 0:00:06]}  Ng6 {[%clk 0:01:08]} 35. Rad1 {[%clk 0:00:06]}  Be6 {[%clk 0:01:08]} 36. Qb1 {[%clk 0:00:04]}  Ne7 {[%clk 0:01:07]} 37. Bb2 {[%clk 0:00:04]}  f4 {[%clk 0:01:06]} 38. Qc1 {[%clk 0:00:05]}  fxg3 {[%clk 0:01:06]} 39. hxg3 {[%clk 0:00:05]}  Nf5 {[%clk 0:01:04]} 40. Kg2 {[%clk 0:00:05]}  Ne7 {[%clk 0:00:59]} 41. Rf1 {[%clk 0:00:05]}  Bf5 {[%clk 0:00:59]} 42. Bxf5 {[%clk 0:00:05]}  Nxf5 {[%clk 0:01:00]} 43. Qd2 {[%clk 0:00:05]}  Qd8 {[%clk 0:00:56]} 44. e6 {[%clk 0:00:05]}  Rf6 {[%clk 0:00:55]} 45. Rde1 {[%clk 0:00:05]}  Qe7 {[%clk 0:00:55]} 46. Qd3 {[%clk 0:00:03]}  Rg6 {[%clk 0:00:55]} 47. Bc1 {[%clk 0:00:02]}  h5 {[%clk 0:00:55]} 48. Re2 {[%clk 0:00:01]}  h4 {[%clk 0:00:54]} 49. g4 {[%clk 0:00:01]}  Ng3 {[%clk 0:00:55]} 50. Rfe1 {[%clk 0:00:01]}  Nxe2 {[%clk 0:00:55]} 51. Rxe2 {[%clk 0:00:02]}  Rxe6 {[%clk 0:00:54]} 52. Rxe6 {[%clk 0:00:02]}  Qxe6 {[%clk 0:00:54]} 53. Bxg5 {[%clk 0:00:00]}  Qe1 {[%clk 0:00:52]} 0-1


[Site "https://www.chess.com"]

[Event "Titled Tuesday Blitz August 08 Early 2023"]
[White "Floresvillar Gonzalez, Luis Migu"]
[Black "Rakhimgaliyev, Yerlan"]
[WhiteFideId "5100542"]
[BlackFideId "13705148"]
[WhiteElo "2153"]
[BlackElo "2446"]
[Result "0-1"]
[Round "2"]
[TimeControl "180+1"]
[Date "2023.08.08"]
[WhiteClock "0:00:00"]
[BlackClock "0:01:00"]
[Board "255"]

1. d4 {[%clk 0:03:00]}  Nf6 {[%clk 0:02:59]} 2. c3 {[%clk 0:02:59]}  c5 {[%clk 0:02:59]} 3. Nf3 {[%clk 0:02:57]}  b6 {[%clk 0:02:58]} 4. Bg5 {[%clk 0:02:56]}  Bb7 {[%clk 0:02:59]} 5. e3 {[%clk 0:02:53]}  Ne4 {[%clk 0:02:56]} 6. Bf4 {[%clk 0:02:47]}  d6 {[%clk 0:02:51]} 7. Nbd2 {[%clk 0:02:45]}  Nd7 {[%clk 0:02:50]} 8. Bd3 {[%clk 0:02:40]}  Nxd2 {[%clk 0:02:50]} 9. Qxd2 {[%clk 0:02:38]}  h5 {[%clk 0:02:44]} 10. h3 {[%clk 0:02:36]}  e6 {[%clk 0:02:36]} 11. Qe2 {[%clk 0:02:25]}  Be7 {[%clk 0:02:26]} 12. O-O {[%clk 0:02:24]}  g5 {[%clk 0:02:24]} 13. Bh2 {[%clk 0:02:11]}  g4 {[%clk 0:02:24]} 14. hxg4 {[%clk 0:01:52]}  hxg4 {[%clk 0:02:24]} 15. Nd2 {[%clk 0:01:50]}  Nf6 {[%clk 0:02:14]} 16. e4 {[%clk 0:01:36]}  Nh5 {[%clk 0:01:53]} 17. Bb5+ {[%clk 0:01:26]}  Kf8 {[%clk 0:01:53]} 18. Qxg4 {[%clk 0:01:24]}  Nf6 {[%clk 0:01:35]} 19. Qe2 {[%clk 0:01:21]}  a6 {[%clk 0:01:31]} 20. Bd3 {[%clk 0:01:18]}  Rg8 {[%clk 0:01:27]} 21. f3 {[%clk 0:01:01]}  Nh5 {[%clk 0:01:25]} 22. e5 {[%clk 0:00:56]}  Bg5 {[%clk 0:01:18]} 23. exd6 {[%clk 0:00:50]}  Nf4 {[%clk 0:01:14]} 24. Bxf4 {[%clk 0:00:49]}  Bxf4 {[%clk 0:01:15]} 25. Be4 {[%clk 0:00:47]}  Qh4 {[%clk 0:01:14]} 26. g4 {[%clk 0:00:37]}  Rh8 {[%clk 0:01:00]} 27. Bxb7 {[%clk 0:00:21]}  Bh2+ {[%clk 0:01:00]} 28. Kg2 {[%clk 0:00:18]}  Qg3+ {[%clk 0:00:59]} 29. Kh1 {[%clk 0:00:00]}  Bg1+ {[%clk 0:01:00]} 0-1


[Site "https://www.chess.com"]

[Event "Titled Tuesday Blitz August 08 Early 2023"]
[White "Sailer, Mike"]
[Black "Kazakov, Mikhail"]
[WhiteFideId "2012901"]
[BlackFideId "14102749"]
[WhiteElo "2149"]
[BlackElo "2444"]
[Result "0-1"]
[Round "2"]
[TimeControl "180+1"]
[Date "2023.08.08"]
[WhiteClock "0:00:01"]
[BlackClock "0:00:06"]
[Board "258"]

1. e4 {[%clk 0:02:59]}  c5 {[%clk 0:02:51]} 2. d4 {[%clk 0:02:59]}  cxd4 {[%clk 0:02:50]} 3. Qxd4 {[%clk 0:02:57]}  Nc6 {[%clk 0:02:48]} 4. Qd3 {[%clk 0:02:57]}  d6 {[%clk 0:02:43]} 5. Nc3 {[%clk 0:02:57]}  g6 {[%clk 0:02:42]} 6. Nf3 {[%clk 0:02:50]}  Bg7 {[%clk 0:02:38]} 7. h3 {[%clk 0:02:49]}  Nf6 {[%clk 0:02:37]} 8. Bg5 {[%clk 0:02:43]}  O-O {[%clk 0:02:24]} 9. Be2 {[%clk 0:02:37]}  b6 {[%clk 0:02:19]} 10. O-O {[%clk 0:02:31]}  Bb7 {[%clk 0:02:14]} 11. a3 {[%clk 0:02:20]}  a6 {[%clk 0:02:09]} 12. Rfe1 {[%clk 0:02:20]}  Rc8 {[%clk 0:02:03]} 13. Rad1 {[%clk 0:02:20]}  Na5 {[%clk 0:01:54]} 14. Qe3 {[%clk 0:02:03]}  Nc4 {[%clk 0:01:46]} 15. Bxc4 {[%clk 0:02:02]}  Rxc4 {[%clk 0:01:46]} 16. e5 {[%clk 0:01:50]}  Ne4 {[%clk 0:01:07]} 17. Nxe4 {[%clk 0:01:39]}  Rxe4 {[%clk 0:01:06]} 18. Qxe4 {[%clk 0:01:26]}  Bxe4 {[%clk 0:01:04]} 19. Rxe4 {[%clk 0:01:26]}  d5 {[%clk 0:00:44]} 20. Red4 {[%clk 0:01:10]}  Qc7 {[%clk 0:00:40]} 21. Rxd5 {[%clk 0:01:07]}  h6 {[%clk 0:00:36]} 22. Bf4 {[%clk 0:00:51]}  Qxc2 {[%clk 0:00:30]} 23. R1d2 {[%clk 0:00:52]}  Qf5 {[%clk 0:00:26]} 24. Bg3 {[%clk 0:00:45]}  Rc8 {[%clk 0:00:23]} 25. Rd8+ {[%clk 0:00:36]}  Rxd8 {[%clk 0:00:19]} 26. Rxd8+ {[%clk 0:00:37]}  Kh7 {[%clk 0:00:20]} 27. Rd2 {[%clk 0:00:31]}  Qb1+ {[%clk 0:00:19]} 28. Kh2 {[%clk 0:00:31]}  Qc1 {[%clk 0:00:19]} 29. Re2 {[%clk 0:00:26]}  Qc4 {[%clk 0:00:16]} 30. Rd2 {[%clk 0:00:24]}  b5 {[%clk 0:00:17]} 31. Bh4 {[%clk 0:00:17]}  g5 {[%clk 0:00:14]} 32. Bg3 {[%clk 0:00:17]}  a5 {[%clk 0:00:14]} 33. Nd4 {[%clk 0:00:17]}  e6 {[%clk 0:00:11]} 34. Nf3 {[%clk 0:00:16]}  b4 {[%clk 0:00:11]} 35. axb4 {[%clk 0:00:15]}  axb4 {[%clk 0:00:12]} 36. Ne1 {[%clk 0:00:13]}  Qe4 {[%clk 0:00:10]} 37. Nf3 {[%clk 0:00:13]}  Kg6 {[%clk 0:00:10]} 38. Rd4 {[%clk 0:00:12]}  Qb7 {[%clk 0:00:08]} 39. Rc4 {[%clk 0:00:11]}  b3 {[%clk 0:00:08]} 40. Nd4 {[%clk 0:00:11]}  Qd5 {[%clk 0:00:07]} 41. Ra4 {[%clk 0:00:10]}  Bxe5 {[%clk 0:00:06]} 42. Bxe5 {[%clk 0:00:09]}  Qxe5+ {[%clk 0:00:07]} 43. g3 {[%clk 0:00:10]}  Qd5 {[%clk 0:00:06]} 44. Rb4 {[%clk 0:00:10]}  Qe4 {[%clk 0:00:05]} 45. Nc6 {[%clk 0:00:08]}  Qxc6 {[%clk 0:00:04]} 46. Rxb3 {[%clk 0:00:09]}  Qc2 {[%clk 0:00:04]} 47. Rb7 {[%clk 0:00:08]}  Qxf2+ {[%clk 0:00:04]} 48. Kh1 {[%clk 0:00:07]}  Qf3+ {[%clk 0:00:05]} 49. Kh2 {[%clk 0:00:01]}  Qxb7 {[%clk 0:00:06]} 0-1


[Site "https://www.chess.com"]

[Event "Titled Tuesday Blitz August 08 Early 2023"]
[White "Karas, Marek"]
[Black "Putri, Regita Desyari"]
[WhiteFideId "14928558"]
[BlackFideId "7109083"]
[WhiteElo "2442"]
[BlackElo "2144"]
[Result "1-0"]
[Round "2"]
[TimeControl "180+1"]
[Date "2023.08.08"]
[WhiteClock "0:00:22"]
[BlackClock "0:00:00"]
[Board "260"]

1. e4 {[%clk 0:03:00]}  e5 {[%clk 0:03:00]} 2. Nf3 {[%clk 0:02:59]}  Nc6 {[%clk 0:03:00]} 3. Nc3 {[%clk 0:02:55]}  Nf6 {[%clk 0:03:00]} 4. d4 {[%clk 0:02:55]}  exd4 {[%clk 0:02:59]} 5. Nxd4 {[%clk 0:02:56]}  Bb4 {[%clk 0:02:58]} 6. Nxc6 {[%clk 0:02:56]}  bxc6 {[%clk 0:02:59]} 7. Bd3 {[%clk 0:02:55]}  d5 {[%clk 0:02:58]} 8. exd5 {[%clk 0:02:56]}  cxd5 {[%clk 0:02:59]} 9. O-O {[%clk 0:02:56]}  c6 {[%clk 0:02:58]} 10. Bg5 {[%clk 0:02:54]}  O-O {[%clk 0:02:57]} 11. h3 {[%clk 0:02:51]}  Bd6 {[%clk 0:02:56]} 12. Qf3 {[%clk 0:02:46]}  Be5 {[%clk 0:02:32]} 13. Rfe1 {[%clk 0:02:43]}  Qd6 {[%clk 0:02:32]} 14. Rad1 {[%clk 0:02:39]}  h6 {[%clk 0:02:29]} 15. Bc1 {[%clk 0:02:28]}  Bd7 {[%clk 0:02:18]} 16. Ne2 {[%clk 0:02:15]}  Qc7 {[%clk 0:02:04]} 17. Bf4 {[%clk 0:02:13]}  Bxf4 {[%clk 0:02:02]} 18. Nxf4 {[%clk 0:02:07]}  Rfe8 {[%clk 0:02:02]} 19. c3 {[%clk 0:01:54]}  Qb7 {[%clk 0:01:51]} 20. b4 {[%clk 0:01:45]}  a5 {[%clk 0:01:48]} 21. a3 {[%clk 0:01:45]}  axb4 {[%clk 0:01:48]} 22. axb4 {[%clk 0:01:46]}  Qb6 {[%clk 0:01:33]} 23. Ne2 {[%clk 0:01:37]}  c5 {[%clk 0:01:28]} 24. bxc5 {[%clk 0:01:36]}  Qxc5 {[%clk 0:01:29]} 25. Nd4 {[%clk 0:01:36]}  Rxe1+ {[%clk 0:01:19]} 26. Rxe1 {[%clk 0:01:35]}  Re8 {[%clk 0:01:20]} 27. Rd1 {[%clk 0:01:27]}  Ne4 {[%clk 0:01:00]} 28. Ne2 {[%clk 0:01:17]}  Bc6 {[%clk 0:00:41]} 29. Bxe4 {[%clk 0:00:59]}  dxe4 {[%clk 0:00:41]} 30. Qe3 {[%clk 0:00:59]}  Qxe3 {[%clk 0:00:12]} 31. fxe3 {[%clk 0:01:00]}  Bb5 {[%clk 0:00:13]} 32. Nd4 {[%clk 0:00:57]}  Bd3 {[%clk 0:00:13]} 33. Rc1 {[%clk 0:00:54]}  Rc8 {[%clk 0:00:14]} 34. Kf2 {[%clk 0:00:54]}  Kf8 {[%clk 0:00:13]} 35. Ke1 {[%clk 0:00:49]}  Ke7 {[%clk 0:00:11]} 36. Kd2 {[%clk 0:00:48]}  g6 {[%clk 0:00:11]} 37. Ra1 {[%clk 0:00:48]}  Kf6 {[%clk 0:00:04]} 38. Ra7 {[%clk 0:00:43]}  Kg7 {[%clk 0:00:05]} 39. Ne6+ {[%clk 0:00:31]}  Kf6 {[%clk 0:00:05]} 40. Nf4 {[%clk 0:00:32]}  Rd8 {[%clk 0:00:01]} 41. Ke1 {[%clk 0:00:28]}  Bc2 {[%clk 0:00:01]} 42. Ra2 {[%clk 0:00:24]}  Bb3 {[%clk 0:00:00]} 43. Rb2 {[%clk 0:00:22]} 1-0


[Site "https://www.chess.com"]

[Event "Titled Tuesday Blitz August 08 Early 2023"]
[White "Novita, Anjas"]
[Black "Kirillov, Dmitry"]
[WhiteFideId "7100949"]
[BlackFideId "34180572"]
[WhiteElo "2112"]
[BlackElo "2440"]
[Result "0-1"]
[Round "2"]
[TimeControl "180+1"]
[Date "2023.08.08"]
[WhiteClock "0:00:00"]
[BlackClock "0:00:13"]
[Board "261"]

1. e4 {[%clk 0:03:00]}  c6 {[%clk 0:02:59]} 2. d4 {[%clk 0:02:59]}  d5 {[%clk 0:03:00]} 3. e5 {[%clk 0:03:00]}  c5 {[%clk 0:03:00]} 4. dxc5 {[%clk 0:02:59]}  Nc6 {[%clk 0:03:01]} 5. a3 {[%clk 0:02:59]}  e6 {[%clk 0:03:00]} 6. b4 {[%clk 0:02:58]}  a5 {[%clk 0:03:01]} 7. c3 {[%clk 0:02:08]}  axb4 {[%clk 0:03:00]} 8. cxb4 {[%clk 0:02:09]}  Nxb4 {[%clk 0:02:39]} 9. axb4 {[%clk 0:02:06]}  Rxa1 {[%clk 0:02:40]} 10. Bb2 {[%clk 0:02:07]}  Ra8 {[%clk 0:02:38]} 11. Nf3 {[%clk 0:01:59]}  Ne7 {[%clk 0:02:37]} 12. Bd3 {[%clk 0:01:57]}  Bd7 {[%clk 0:02:36]} 13. O-O {[%clk 0:01:55]}  h6 {[%clk 0:02:37]} 14. Nd4 {[%clk 0:01:50]}  Nc6 {[%clk 0:02:37]} 15. Nxc6 {[%clk 0:01:42]}  bxc6 {[%clk 0:02:37]} 16. f4 {[%clk 0:01:41]}  Rb8 {[%clk 0:02:37]} 17. Bc3 {[%clk 0:01:35]}  g6 {[%clk 0:02:33]} 18. Qg4 {[%clk 0:01:33]}  h5 {[%clk 0:01:04]} 19. Qh3 {[%clk 0:01:32]}  Be7 {[%clk 0:01:04]} 20. Nd2 {[%clk 0:01:22]}  Bc8 {[%clk 0:00:43]} 21. Nf3 {[%clk 0:01:17]}  Kf8 {[%clk 0:00:39]} 22. Ng5 {[%clk 0:00:50]}  Bxg5 {[%clk 0:00:33]} 23. fxg5 {[%clk 0:00:48]}  Qxg5 {[%clk 0:00:34]} 24. Qf3 {[%clk 0:00:37]}  Rh7 {[%clk 0:00:33]} 25. Bd4 {[%clk 0:00:33]}  Rxb4 {[%clk 0:00:31]} 26. Be3 {[%clk 0:00:28]}  Qg4 {[%clk 0:00:32]} 27. Qf2 {[%clk 0:00:20]}  h4 {[%clk 0:00:29]} 28. Ra1 {[%clk 0:00:10]}  Rb8 {[%clk 0:00:24]} 29. Ra7 {[%clk 0:00:07]}  Bb7 {[%clk 0:00:18]} 30. h3 {[%clk 0:00:01]}  Qh5 {[%clk 0:00:18]} 31. Qf6 {[%clk 0:00:00]}  Qh6 {[%clk 0:00:13]} 0-1


[Site "https://www.chess.com"]

[Event "Titled Tuesday Blitz August 08 Early 2023"]
[White "Sliwicki, Damian"]
[Black "Hartikainen, Jarmo"]
[WhiteFideId "1127128"]
[BlackFideId "503134"]
[WhiteElo "2432"]
[BlackElo "2089"]
[Result "1-0"]
[Round "2"]
[TimeControl "180+1"]
[Date "2023.08.08"]
[WhiteClock "0:01:53"]
[BlackClock "0:00:59"]
[Board "264"]

1. e4 {[%clk 0:03:00]}  c5 {[%clk 0:02:59]} 2. Nf3 {[%clk 0:03:00]}  Nc6 {[%clk 0:02:58]} 3. c4 {[%clk 0:02:55]}  e6 {[%clk 0:02:57]} 4. d4 {[%clk 0:02:55]}  cxd4 {[%clk 0:02:57]} 5. Nxd4 {[%clk 0:02:56]}  Nf6 {[%clk 0:02:55]} 6. Nc3 {[%clk 0:02:55]}  Bb4 {[%clk 0:02:55]} 7. Qd3 {[%clk 0:02:55]}  a6 {[%clk 0:02:48]} 8. Bd2 {[%clk 0:02:51]}  Qc7 {[%clk 0:02:39]} 9. Be2 {[%clk 0:02:49]}  Ne5 {[%clk 0:02:37]} 10. Qg3 {[%clk 0:02:48]}  O-O {[%clk 0:02:14]} 11. Bh6 {[%clk 0:02:41]}  g6 {[%clk 0:01:53]} 12. O-O {[%clk 0:02:36]}  Bxc3 {[%clk 0:01:44]} 13. bxc3 {[%clk 0:02:34]}  Nxe4 {[%clk 0:01:44]} 14. Qf4 {[%clk 0:02:34]}  f5 {[%clk 0:01:35]} 15. Bxf8 {[%clk 0:02:28]}  Kxf8 {[%clk 0:01:35]} 16. Rfe1 {[%clk 0:02:21]}  d6 {[%clk 0:01:26]} 17. Bf1 {[%clk 0:02:15]}  Nxc3 {[%clk 0:01:23]} 18. Rac1 {[%clk 0:02:10]}  Ne4 {[%clk 0:01:22]} 19. Rxe4 {[%clk 0:02:10]}  Qf7 {[%clk 0:01:08]} 20. Qh6+ {[%clk 0:02:08]}  Kg8 {[%clk 0:01:07]} 21. Rh4 {[%clk 0:02:06]}  Ng4 {[%clk 0:01:05]} 22. Qg5 {[%clk 0:02:05]}  h6 {[%clk 0:01:04]} 23. Rxh6 {[%clk 0:01:54]}  Nxh6 {[%clk 0:01:03]} 24. Qxh6 {[%clk 0:01:55]}  e5 {[%clk 0:01:04]} 25. Nf3 {[%clk 0:01:54]}  Be6 {[%clk 0:01:04]} 26. Ng5 {[%clk 0:01:54]}  Qe7 {[%clk 0:00:59]} 27. Qxg6+ {[%clk 0:01:53]} 1-0


[Site "https://www.chess.com"]

[Event "Titled Tuesday Blitz August 08 Early 2023"]
[White "Ladan, Nicholas"]
[Black "Seifert, Henryk"]
[WhiteFideId "30918855"]
[BlackFideId "1100963"]
[WhiteElo "2426"]
[BlackElo "2071"]
[Result "1-0"]
[Round "2"]
[TimeControl "180+1"]
[Date "2023.08.08"]
[WhiteClock "0:01:54"]
[BlackClock "0:00:00"]
[Board "267"]

1. d4 {[%clk 0:03:00]}  d5 {[%clk 0:02:59]} 2. Nf3 {[%clk 0:03:00]}  c6 {[%clk 0:02:59]} 3. Bf4 {[%clk 0:03:00]}  Bf5 {[%clk 0:02:56]} 4. e3 {[%clk 0:02:59]}  e6 {[%clk 0:02:56]} 5. Nbd2 {[%clk 0:02:59]}  Nf6 {[%clk 0:02:52]} 6. Bd3 {[%clk 0:02:59]}  Bg6 {[%clk 0:02:46]} 7. Qe2 {[%clk 0:02:56]}  Bd6 {[%clk 0:02:40]} 8. Ne5 {[%clk 0:02:56]}  Bxd3 {[%clk 0:02:24]} 9. Nxd3 {[%clk 0:02:54]}  Bxf4 {[%clk 0:02:21]} 10. exf4 {[%clk 0:02:54]}  O-O {[%clk 0:02:11]} 11. h4 {[%clk 0:02:54]}  Nfd7 {[%clk 0:01:43]} 12. h5 {[%clk 0:02:52]}  b6 {[%clk 0:01:33]} 13. h6 {[%clk 0:02:52]}  g6 {[%clk 0:01:33]} 14. Ne5 {[%clk 0:02:45]}  f6 {[%clk 0:01:17]} 15. Nxc6 {[%clk 0:02:42]}  Nxc6 {[%clk 0:01:10]} 16. Qxe6+ {[%clk 0:02:42]}  Rf7 {[%clk 0:01:07]} 17. Qxc6 {[%clk 0:02:42]}  Re7+ {[%clk 0:00:46]} 18. Kf1 {[%clk 0:02:38]}  Nf8 {[%clk 0:00:45]} 19. c3 {[%clk 0:02:22]}  Rc8 {[%clk 0:00:34]} 20. Qa4 {[%clk 0:02:21]}  Qd6 {[%clk 0:00:31]} 21. g3 {[%clk 0:02:20]}  Qe6 {[%clk 0:00:29]} 22. Kg2 {[%clk 0:02:17]}  g5 {[%clk 0:00:24]} 23. Rae1 {[%clk 0:02:12]}  Qf7 {[%clk 0:00:17]} 24. fxg5 {[%clk 0:02:09]}  fxg5 {[%clk 0:00:15]} 25. Qd1 {[%clk 0:02:04]}  Ng6 {[%clk 0:00:11]} 26. Qg4 {[%clk 0:02:03]}  Rf8 {[%clk 0:00:09]} 27. Nf3 {[%clk 0:01:56]}  Re4 {[%clk 0:00:08]} 28. Rxe4 {[%clk 0:01:55]}  Nf4+ {[%clk 0:00:00]} 29. Rxf4 {[%clk 0:01:54]} 1-0


[Site "https://www.chess.com"]